fUST/lending_fUST_20250307
["ID","MTS","AMOUNT","RATE_DAILY","PERIOD"]
[355593127,1741338745823,-6088.81,0.00046,60]
[355593128,1741338745847,-2614.24,0.00046027,120]
[355593129,1741338745873,-472.88534711,0.00046183,120]
[355593130,1741338745897,-200.0,0.000463,120]
[355593131,1741338745927,-466.84,0.000464,39]
[355593132,1741338745954,-466.84,0.000464,39]
[355593133,1741338745983,-466.84,0.000464,39]
[355593134,1741338746010,-466.84,0.000464,39]
[355593135,1741338746036,-466.84,0.000464,39]
[355593136,1741338746062,-466.84,0.000464,39]
[355593137,1741338746089,-466.84,0.000464,39]
[355593138,1741338746118,-466.84,0.000464,39]
[355593139,1741338746145,-466.84,0.000464,39]
[355593140,1741338746172,-466.84,0.000464,39]
[355593141,1741338746198,-466.84,0.000464,39]
[355593142,1741338746224,-466.84,0.000464,39]
[355593143,1741338746250,-466.84,0.000464,39]
[355593144,1741338746278,-466.84,0.000464,39]
[355593145,1741338746305,-466.84,0.000464,39]
[355593146,1741338746332,-466.84,0.000464,39]
[355593147,1741338746360,-466.84,0.000464,39]
[355593148,1741338746386,-466.84,0.000464,39]
[355593149,1741338746413,-466.84,0.000464,39]
[355593150,1741338746439,-466.84,0.000464,39]
[355593151,1741338746466,-466.84,0.000464,39]
[355593152,1741338746492,-466.84,0.000464,39]
[355593153,1741338746517,-466.84,0.000464,39]
[355593154,1741338746683,-466.84,0.000464,39]
[355593155,1741338746709,-1900.0,0.00046475,120]
[355593156,1741338746733,-221.75,0.00046575,30]
[355593157,1741338746759,-2614.24,0.00046575,120]
[355593158,1741338756546,2200.0,0.00046575,30]
[355593159,1741338760515,-25201.09322513,0.00050029,60]
[355593160,1741338760540,-300.0,0.00050029,60]
[355593161,1741338760565,-300.0,0.00050029,60]
[355593162,1741338760589,-400.0,0.00050029,60]
[355593163,1741338760614,-186.5847442,0.00050029,30]
[355593164,1741338760638,-1326.10886392,0.00050029,120]
[355593165,1741338760663,-1896.71993737,0.00050029,32]
[355593166,1741338760688,-1962.02429496,0.00050029,120]
[355593167,1741338760712,-901.29358936,0.00050029,120]
[355593168,1741338760736,-550.06938778,0.00050029,120]
[355593169,1741338760760,-1975.53436326,0.00050029,30]
[355593170,1741338760784,-191.8292983,0.00050029,120]
[355593171,1741338760807,-1864.7522895,0.00050029,120]
[355593172,1741338760831,-677.34318482,0.00050029,120]
[355593173,1741338760855,-1103.78192081,0.00050029,60]
[355593174,1741338760878,-240.82074905,0.00050029,120]
[355593175,1741338760902,-1155.01672748,0.00050029,120]
[355593176,1741338760926,-1968.70830484,0.00050029,120]
[355593177,1741338760949,-932.29854021,0.00050029,120]
[355593178,1741338760973,-2000.0,0.00050029,120]
[355593179,1741338761004,-1080.47713749,0.00050029,120]
[355593180,1741338761028,-1961.77409862,0.00050029,30]
[355593181,1741338761053,-253.71142639,0.00050029,30]
[355593182,1741338761078,-934.82721325,0.00050029,120]
[355593183,1741338761103,-849.62374061,0.00050029,120]
[355593184,1741338761129,-1589.17338323,0.00050029,120]
[355593185,1741338761154,-1036.17273335,0.00050029,120]
[355593186,1741338761179,-2537.7094687,0.00050029,120]
[355593187,1741338761206,-991.44152424,0.00050029,120]
[355593188,1741338761230,-439.13768605,0.00050029,120]
[355593189,1741338761255,-2293.28365289,0.00050029,120]
[355593190,1741338761280,-1729.30872095,0.00050029,120]
[355593191,1741338761305,-675.29960619,0.00050029,120]
[355593192,1741338761328,-419.75987526,0.00050029,120]
[355593193,1741338761354,-497.77504752,0.00050029,120]
[355593194,1741338761380,-212.46625343,0.00050029,120]
[355593195,1741338761404,-226.14832198,0.00050029,120]
[355593196,1741338761431,-311.91861498,0.00050029,120]
[355593197,1741338761456,-200.50729471,0.00050029,120]
[355593198,1741338761481,-2000.0,0.00050029,60]
[355593199,1741338761506,-710.28311574,0.00050029,120]
[355593200,1741338761530,-150.0,0.00050029,90]
[355593201,1741338761555,-35126.03262372,0.00050029,30]
[355593202,1741338761579,-3000.0,0.00050029,30]
[355593203,1741338761603,-1270.12744002,0.00050029,35]
[355593204,1741338761629,-162.0,0.00050029,30]
[355593205,1741338761654,-52300.0,0.00050029,31]
[355593206,1741338761680,-4285.0,0.00050029,120]
[355593207,1741338761706,-1100.22538284,0.00050029,30]
[355593208,1741338761731,-501.0,0.00050029,120]
[355593209,1741338761755,-245.93418809,0.00050029,30]
[355593210,1741338761781,-325.23991492,0.00050029,90]
[355593211,1741338761806,-10000.0,0.00050029,120]
[355593212,1741338761831,-5000.0,0.00050029,120]
[355593213,1741338761854,-251.25,0.00050029,30]
[355593214,1741338761880,-335.75,0.00050029,30]
[355593215,1741338761904,-2075.3,0.00050029,30]
[355593216,1741338761932,-1177.8847292,0.00050029,35]
[355593217,1741338761958,-1867.0,0.00050029,120]
[355593218,1741338761983,-4558.32965609,0.00050029,30]
[355593219,1741338762009,-12649.77663859,0.00050029,120]
[355593220,1741338762034,-1019.0,0.00050029,120]
[355593221,1741338762058,-242.7269368,0.00050029,120]
[355593222,1741338762082,-10000.0,0.00050029,120]
[355593223,1741338762106,-5000.0,0.00050029,30]
[355593224,1741338762131,-437.54486874,0.00050029,35]
[355593225,1741338762155,-10000.0,0.00050029,30]
[355593226,1741338762179,-1683.8283288,0.00050029,120]
[355593227,1741338762203,-2076.77001773,0.00050029,120]
[355593228,1741338762227,-94703.66162202,0.00050029,30]
[355593229,1741338762250,-250.0,0.00050029,120]
[355593230,1741338762275,-150.0,0.00050029,120]
[355593231,1741338762299,-150.0,0.00050029,120]
[355593232,1741338762324,-150.0,0.00050029,120]
[355593233,1741338762349,-150.0,0.00050029,120]
[355593234,1741338762373,-150.0,0.00050029,120]
[355593235,1741338762401,-295.974,0.00050029,120]
[355593236,1741338762426,-150.0,0.00050029,120]
[355593237,1741338762452,-150.0,0.00050029,120]
[355593238,1741338762478,-150.0,0.00050029,120]
[355593239,1741338762502,-151.859,0.00050029,120]
[355593240,1741338762527,-150.0,0.00050029,120]
[355593241,1741338762551,-150.0,0.00050029,120]
[355593242,1741338762575,-194.481,0.00050029,120]
[355593243,1741338762609,-150.0,0.00050029,120]
[355593244,1741338762638,-150.0,0.00050029,120]
[355593245,1741338762661,-150.0,0.00050029,120]
[355593246,1741338762686,-150.0,0.00050029,120]
[355593247,1741338762710,-150.0,0.00050029,120]
[355593248,1741338762736,-250.0,0.00050029,120]
[355593249,1741338762761,-150.0,0.00050029,120]
[355593250,1741338762786,-150.0,0.00050029,120]
[355593251,1741338762811,-150.0,0.00050029,120]
[355593252,1741338762835,-150.0,0.00050029,120]
[355593253,1741338762861,-150.0,0.00050029,120]
[355593254,1741338762888,-233.817,0.00050029,120]
[355593255,1741338762916,-250.0,0.00050029,120]
[355593256,1741338762941,-159.099,0.00050029,120]
[355593257,1741338762968,-150.0,0.00050029,120]
[355593258,1741338762993,-150.0,0.00050029,120]
[355593259,1741338763212,-150.0,0.00050029,120]
[355593260,1741338763238,-150.0,0.00050029,120]
[355593261,1741338763262,-150.0,0.00050029,120]
[355593262,1741338763286,-150.0,0.00050029,120]
[355593263,1741338763310,-150.0,0.00050029,120]
[355593264,1741338763334,-150.0,0.00050029,120]
[355593265,1741338763357,-150.0,0.00050029,120]
[355593266,1741338763381,-150.0,0.00050029,120]
[355593267,1741338763404,-150.0,0.00050029,120]
[355593268,1741338763427,-150.0,0.00050029,120]
[355593269,1741338763451,-150.0,0.00050029,120]
[355593270,1741338763473,-150.0,0.00050029,120]
[355593271,1741338763496,-150.0,0.00050029,120]
[355593272,1741338763519,-150.0,0.00050029,120]
[355593273,1741338763543,-150.0,0.00050029,120]
[355593274,1741338763568,-550.693,0.00050029,120]
[355593275,1741338763592,-540.0,0.00050029,120]
[355593276,1741338763615,-540.0,0.00050029,120]
[355593277,1741338763640,-540.0,0.00050029,120]
[355593278,1741338763664,-540.0,0.00050029,120]
[355593279,1741338763687,-540.0,0.00050029,120]
[355593280,1741338763711,-540.0,0.00050029,120]
[355593281,1741338763735,-540.0,0.00050029,120]
[355593282,1741338763760,-540.0,0.00050029,120]
[355593283,1741338763785,-540.0,0.00050029,120]
[355593284,1741338763810,-540.0,0.00050029,120]
[355593285,1741338763834,-1953.0,0.00050029,120]
[355593286,1741338763858,-540.0,0.00050029,120]
[355593287,1741338763882,-1953.0,0.00050029,120]
[355593288,1741338763907,-540.0,0.00050029,120]
[355593289,1741338763933,-1953.0,0.00050029,120]
[355593290,1741338763956,-540.0,0.00050029,120]
[355593291,1741338763979,-1953.0,0.00050029,120]
[355593292,1741338764003,-540.0,0.00050029,120]
[355593293,1741338764026,-1953.0,0.00050029,120]
[355593294,1741338764049,-540.0,0.00050029,120]
[355593295,1741338764072,-1953.0,0.00050029,120]
[355593296,1741338764096,-1953.0,0.00050029,120]
[355593297,1741338764118,-540.0,0.00050029,120]
[355593298,1741338764143,-540.0,0.00050029,120]
[355593299,1741338764168,-1953.0,0.00050029,120]
[355593300,1741338764192,-1953.0,0.00050029,120]
[355593301,1741338764218,-1953.0,0.00050029,120]
[355593302,1741338764241,-1953.0,0.00050029,120]
[355593303,1741338764265,-1953.0,0.00050029,120]
[355593304,1741338764288,-1953.0,0.00050029,120]
[355593305,1741338764312,-1953.0,0.00050029,120]
[355593306,1741338764336,-1953.0,0.00050029,120]
[355593307,1741338764359,-1953.0,0.00050029,120]
[355593308,1741338764382,-1953.0,0.00050029,120]
[355593309,1741338764406,-1953.0,0.00050029,120]
[355593310,1741338764430,-748.598,0.00050029,120]
[355593311,1741338764453,-2322.549,0.00050029,120]
[355593312,1741338764477,-2275.0,0.00050029,120]
[355593313,1741338764500,-2275.0,0.00050029,120]
[355593314,1741338764523,-2275.0,0.00050029,120]
[355593315,1741338764546,-2275.0,0.00050029,120]
[355593316,1741338764569,-2275.0,0.00050029,120]
[355593317,1741338764593,-2275.0,0.00050029,120]
[355593318,1741338764617,-2275.0,0.00050029,120]
[355593319,1741338764641,-2275.0,0.00050029,120]
[355593320,1741338764664,-2275.0,0.00050029,120]
[355593321,1741338764687,-2275.0,0.00050029,120]
[355593322,1741338764710,-2275.0,0.00050029,120]
[355593323,1741338764733,-2275.0,0.00050029,120]
[355593324,1741338764757,-2275.0,0.00050029,120]
[355593325,1741338764779,-2275.0,0.00050029,120]
[355593326,1741338764803,-2275.0,0.00050029,120]
[355593327,1741338764827,-2275.0,0.00050029,120]
[355593328,1741338764852,-2275.0,0.00050029,120]
[355593329,1741338764875,-2275.0,0.00050029,120]
[355593330,1741338764900,-500.0,0.00050029,30]
[355593331,1741338764927,-500.0,0.00050029,30]
[355593332,1741338764953,-500.0,0.00050029,30]
[355593333,1741338764977,-398.0,0.00050029,120]
[355593334,1741338765003,-398.0,0.00050029,120]
[355593335,1741338765026,-398.0,0.00050029,120]
[355593336,1741338765050,-398.0,0.00050029,120]
[355593337,1741338765074,-398.0,0.00050029,120]
[355593338,1741338765098,-398.0,0.00050029,120]
[355593339,1741338765122,-398.0,0.00050029,120]
[355593340,1741338765148,-398.0,0.00050029,120]
[355593341,1741338765172,-398.0,0.00050029,120]
[355593342,1741338765197,-398.0,0.00050029,120]
[355593343,1741338765221,-398.0,0.00050029,120]
[355593344,1741338765245,-398.0,0.00050029,120]
[355593345,1741338765269,-398.0,0.00050029,120]
[355593346,1741338765293,-398.0,0.00050029,120]
[355593347,1741338765316,-398.0,0.00050029,120]
[355593348,1741338765339,-398.0,0.00050029,120]
[355593349,1741338765362,-398.0,0.00050029,120]
[355593350,1741338765385,-293.992,0.00050029,120]
[355593351,1741338765409,-1216.438707,0.00050029,30]
[355593355,1741339683017,10000.0,0.0001602,2]
[355593357,1741339693371,10000.0,0.0001602,2]
[355593483,1741339840084,-484.77675721,0.00018,2]
[355593484,1741339840094,-24900.0,0.00018052,2]
[355593485,1741339840103,-171.07153638,0.000189,2]
[355593486,1741339840116,-178.8061408,0.00019078,2]
[355593487,1741339840125,-501.85849124,0.00019173,2]
[355593488,1741339840135,-582.50023953,0.00019173,2]
[355593489,1741339840145,-500.0,0.00019173,2]
[355593490,1741339840154,-160.21226566,0.00019173,2]
[355593491,1741339840163,-287.42712704,0.00019173,2]
[355593492,1741339840173,-500.0,0.00019173,2]
[355593493,1741339840183,-500.0,0.00019173,2]
[355593494,1741339840193,-160.24722961,0.00019173,2]
[355593495,1741339840203,-500.0,0.00019173,2]
[355593496,1741339840213,-500.0,0.00019173,2]
[355593497,1741339840223,-500.0,0.00019173,2]
[355593498,1741339840232,-267.08848597,0.00019173,2]
[355593499,1741339840242,-500.0,0.00019173,2]
[355593500,1741339840253,-500.0,0.00019173,2]
[355593501,1741339840268,-500.0,0.00019173,2]
[355593502,1741339840277,-501.4176322,0.00019173,2]
[355593503,1741339840481,-501.01955745,0.00019173,2]
[355593504,1741339840491,-1073.37,0.00019178,2]
[355593505,1741339840501,-500.0,0.00019178,2]
[355593506,1741339840511,-500.0,0.00019178,2]
[355593507,1741339840521,-632.49,0.00019178,2]
[355593508,1741339840530,-500.0,0.00019178,2]
[355593509,1741339840539,-500.0,0.00019178,2]
[355593510,1741339840549,-302.96854706,0.00019178,2]
[355593511,1741339840558,-500.0,0.00019178,2]
[355593512,1741339840567,-500.0,0.00019178,2]
[355593513,1741339840577,-500.0,0.00019178,2]
[355593514,1741339840586,-500.0,0.00019178,2]
[355593515,1741339840595,-500.0,0.00019178,2]
[355593516,1741339840605,-500.0,0.00019178,2]
[355593517,1741339840617,-536.33,0.00019178,2]
[355593518,1741339840627,-500.0,0.00019178,2]
[355593519,1741339840636,-500.0,0.00019178,2]
[355593520,1741339840646,-500.0,0.00019178,2]
[355593521,1741339840656,-500.0,0.00019178,2]
[355593522,1741339840665,-582.99,0.00019178,2]
[355593523,1741339840675,-500.0,0.00019178,2]
[355593524,1741339840684,-500.0,0.00019178,2]
[355593525,1741339840694,-500.0,0.00019178,2]
[355593526,1741339840704,-500.0,0.00019178,2]
[355593527,1741339840714,-500.0,0.00019178,2]
[355593528,1741339840723,-522.48,0.00019178,2]
[355593529,1741339840733,-500.0,0.00019178,2]
[355593530,1741339840744,-500.0,0.00019178,2]
[355593531,1741339840753,-500.0,0.00019178,2]
[355593532,1741339840763,-500.0,0.00019178,2]
[355593533,1741339840772,-1188.09,0.00019178,2]
[355593534,1741339840781,-500.4,0.00019178,2]
[355593535,1741339840791,-500.0,0.00019178,2]
[355593536,1741339840800,-508.37,0.00019178,2]
[355593537,1741339840810,-743.98,0.00019178,2]
[355593538,1741339840820,-1029.73,0.00019178,2]
[355593539,1741339840829,-530.87,0.00019178,2]
[355593540,1741339840838,-1119.24,0.00019178,2]
[355593541,1741339840848,-500.0,0.00019178,2]
[355593542,1741339840860,-500.0,0.00019178,2]
[355593543,1741339840869,-869.0,0.00019178,2]
[355593544,1741339840879,-500.0,0.00019178,2]
[355593545,1741339840889,-500.0,0.00019178,2]
[355593546,1741339840899,-502.22690396,0.00019178,2]
[355593547,1741339840909,-500.0,0.00019178,2]
[355593548,1741339840919,-828.89,0.00019178,2]
[355593549,1741339840928,-500.0,0.00019178,2]
[355593550,1741339840937,-500.0,0.00019178,2]
[355593551,1741339840947,-550.68,0.00019178,2]
[355593552,1741339840956,-596.85,0.00019178,2]
[355593553,1741339840966,-481.8210795,0.00019178,2]
[355593554,1741339840976,-500.0,0.00019178,2]
[355593555,1741339840985,-1242.34,0.00019178,2]
[355593556,1741339840995,-806.94,0.00019178,2]
[355593557,1741339841004,-693.76,0.00019178,2]
[355593558,1741339841013,-807.53,0.00019178,2]
[355593559,1741339841023,-500.0,0.00019178,2]
[355593560,1741339841032,-500.0,0.00019178,2]
[355593561,1741339841041,-1050.35,0.00019178,2]
[355593562,1741339841051,-558.49,0.00019178,2]
[355593563,1741339841060,-807.84,0.00019178,2]
[355593564,1741339841069,-1140.47,0.00019178,2]
[355593565,1741339841079,-500.0,0.00019178,2]
[355593566,1741339841088,-500.0,0.00019178,2]
[355593567,1741339841097,-500.0,0.00019178,2]
[355593568,1741339841107,-555.48598873,0.00019178,2]
[355593610,1741340999915,-24900.0,0.00017849,2]
[355593649,1741341032299,-5027.52824769,0.00018075,2]
[355593651,1741341032309,-1849.1961369,0.00018219,2]
[355593653,1741341032318,-902.42377528,0.000189,2]
[355593655,1741341032327,-419.85637306,0.00019,2]
[355593657,1741341032336,-163.81010771,0.00019047,2]
[355593658,1741341032345,-300.0,0.00019076,2]
[355593659,1741341032355,-14876.13837,0.00019077,2]
[355593661,1741341032364,-20516.01649328,0.00019078,2]
[355593663,1741341032380,-2031.41035538,0.00019078,2]
[355593665,1741341032391,-9002.00993419,0.00019078,2]
[355593686,1741341038013,-15381.8,0.00019078,2]
[355593687,1741341038069,-3846.289,0.00019078,2]
[355593693,1741341040367,-44569.50000001,0.00019078,2]
[355593706,1741341043328,-8003.56962152,0.00019078,2]
[355593759,1741341817358,-227.0,0.00025,120]
[355593760,1741341817402,-373.0,0.00029835,70]
[355593763,1741341905623,227.0,0.00025,120]
[355593795,1741342232413,-300.0,0.0001808,2]
[355593797,1741342232423,-24900.0,0.00018081,2]
[355593821,1741342232659,-677.39370576,0.00019,4]
[355593838,1741342238268,-91.53941115,0.00019,4]
[355593841,1741342238277,-504.42926,0.00019,7]
[355593843,1741342238287,-163.81010769,0.00019047,2]
[355593844,1741342238296,-1589.35942529,0.00019047,2]
[355593845,1741342238305,-22513.23697641,0.00019066,2]
[355593925,1741342996414,-186.795984,0.00017974,2]
[355593928,1741343193401,-572.3748842,0.00017965,2]
[355593994,1741343432721,-1741.7068285,0.000179,2]
[355593996,1741343432731,-300.0,0.00017964,2]
[355593998,1741343432741,-3558.38039151,0.00017965,2]
[355594006,1741343432816,-20769.24472429,0.00017965,2]
[355594008,1741343432826,-438.037395,0.00017965,2]
[355594010,1741343432835,-24899.99840914,0.00018,2]
[355594012,1741343432845,-575.66265842,0.00018,4]
[355594014,1741343432855,-380.40279705,0.0001819,2]
[355594016,1741343432865,-1442.19351868,0.000189,2]
[355594018,1741343432875,-490.88683384,0.00018965,2]
[355594020,1741343432884,-500.0,0.00018965,2]
[355594022,1741343432899,-152.47862416,0.00018965,2]
[355594024,1741343432908,-173.28790192,0.00018965,2]
[355594026,1741343432917,-1585.4967839,0.00018966,2]
[355594098,1741343438467,-3455.65,0.00018966,2]
[355594099,1741343438479,-29021.62548744,0.00018966,2]
[355594100,1741343438491,-2258.68397399,0.00018966,2]
[355594101,1741343438503,-2730.26288135,0.00018966,2]
[355594167,1741344632773,-219.018698,0.00017488,2]
[355594168,1741344632783,-500.0,0.00017738,2]
[355594169,1741344632793,-2010.63159233,0.000178,2]
[355594170,1741344632803,-300.0,0.00017864,2]
[355594171,1741344632813,-24900.0,0.00017865,2]
[355594172,1741344632826,-811.67930554,0.00018458,2]
[355594173,1741344632837,-878.80179757,0.00018765,2]
[355594334,1741345832092,-300.0,0.00017473,2]
[355594335,1741345832102,-64.02850945,0.00017474,2]
[355594339,1741345832121,-24835.97149055,0.00017474,2]
[355594341,1741345832130,-279.060527,0.00017707,2]
[355594342,1741345832140,-341.2672803,0.00017733,2]
[355594345,1741345832150,-611.07523716,0.00017733,2]
[355594347,1741345832159,-166.0,0.00017833,2]
[355594349,1741345832170,-177.99278365,0.00018665,2]
[355594351,1741345832180,-2136.49414549,0.000187,2]
[355594353,1741345832192,-2139.21335322,0.000187,2]
[355594355,1741345832204,-1720.08633003,0.000187,2]
[355594357,1741345832215,-468.04,0.000187,2]
[355594360,1741345832234,-70695.64499604,0.000187,2]
[355594362,1741345832244,-183281.85478873,0.00018766,2]
[355594365,1741345832263,-6616.4597546,0.00018766,2]
[355594367,1741345832275,-3435.28023237,0.00018766,2]
[355594400,1741345837710,-500.0,0.00018699,2]
[355594401,1741345837719,-347.52137584,0.00018699,2]
[355594402,1741345837728,-500.0,0.00018699,2]
[355594403,1741345837738,-332.99515582,0.00018699,2]
[355594404,1741345837771,-167.00484418,0.00018699,2]
[355594405,1741345837781,-500.0,0.00018699,2]
[355594406,1741345837790,-500.0,0.00018699,2]
[355594407,1741345837800,-500.0,0.00018699,2]
[355594408,1741345837810,-600.0,0.00018699,2]
[355594409,1741345837819,-500.0,0.00018699,2]
[355594410,1741345837829,-500.0,0.00018699,2]
[355594411,1741345837839,-500.0,0.00018699,2]
[355594412,1741345837848,-500.0,0.00018699,2]
[355594413,1741345837858,-500.0,0.00018699,2]
[355594414,1741345837867,-500.0,0.00018699,2]
[355594416,1741345837877,-500.0,0.00018699,2]
[355594417,1741345837887,-500.0,0.00018699,2]
[355594418,1741345837898,-500.0,0.00018699,2]
[355594419,1741345837909,-28666.4052243,0.00018766,2]
[355594420,1741345837919,-16472.22709332,0.000188,3]
[355594421,1741345837929,-558.6455881,0.000188,2]
[355594422,1741345837939,-558.6455881,0.000189,2]
[355594423,1741345837949,-558.6455881,0.000189,2]
[355594424,1741345837959,-1528.00815187,0.000189,2]
[355594425,1741345837969,-558.6455881,0.000189,2]
[355594426,1741345837979,-558.6455881,0.000189,2]
[355594427,1741345837988,-558.6455881,0.000189,2]
[355594428,1741345837999,-558.6455881,0.000189,2]
[355594429,1741345838009,-558.6455881,0.000189,2]
[355594430,1741345838019,-558.6455881,0.000189,2]
[355594431,1741345838028,-152.0,0.00018905,2]
[355594432,1741345838038,-1000.0,0.00019,19]
[355594433,1741345838048,-558.6455881,0.00019,2]
[355594434,1741345838058,-558.6455881,0.00019,2]
[355594435,1741345838067,-233.51985559,0.00019065,2]
[355594436,1741345838076,-370.70189486,0.00019075,2]
[355594437,1741345838088,-49.29810514,0.00019075,2]
[355594438,1741345838097,-575.8153077,0.000191,2]
[355594439,1741345838107,-193.48255796,0.00019166,2]
[355594440,1741345838116,-500.0,0.00019166,2]
[355594441,1741345838125,-540.0,0.00019166,2]
[355594442,1741345838135,-583.2,0.00019166,2]
[355594443,1741345838144,-629.856,0.00019166,2]
[355594444,1741345838154,-680.24448,0.00019166,2]
[355594445,1741345838163,-896.31637446,0.00019166,2]
[355594446,1741345838172,-500.0,0.00019173,2]
[355594447,1741345838182,-500.0,0.00019173,2]
[355594448,1741345838191,-500.0,0.00019173,2]
[355594449,1741345838201,-500.0,0.00019173,2]
[355594450,1741345838211,-500.0,0.00019173,2]
[355594451,1741345838221,-500.0,0.00019173,2]
[355594452,1741345838232,-151.0,0.00019173,2]
[355594453,1741345838251,-500.0,0.00019178,2]
[355594454,1741345838261,-210.000867,0.00019178,2]
[355594455,1741345838270,-500.0,0.00019178,2]
[355594456,1741345838279,-500.0,0.00019178,2]
[355594457,1741345838288,-500.0,0.00019178,2]
[355594458,1741345838298,-713.9,0.00019178,2]
[355594459,1741345838307,-500.0,0.00019178,2]
[355594460,1741345838318,-500.0,0.00019178,2]
[355594461,1741345838328,-500.0,0.00019178,2]
[355594462,1741345838338,-500.0,0.00019178,2]
[355594463,1741345838349,-151.0,0.00019178,2]
[355594464,1741345838359,-198.53615,0.00019178,2]
[355594465,1741345838369,-500.0,0.00019178,2]
[355594466,1741345838378,-500.0,0.00019178,2]
[355594467,1741345838389,-511.14,0.00019178,2]
[355594468,1741345838398,-283.37126138,0.00019178,2]
[355594469,1741345838415,-216.62873862,0.00019178,2]
[355594470,1741345838425,-441.24331069,0.00019178,2]
[355594495,1741345845837,-1068.67210125,0.000189,2]
[355594496,1741345845847,-58.75668931,0.00019178,2]
[355594497,1741345845856,-500.0,0.00019178,2]
[355594498,1741345845866,-223.54253978,0.00019178,2]
[355594499,1741346219016,-600.0,0.00032054,120]
[355594500,1741346219039,-500.0,0.00032876,120]
[355594501,1741346219059,-500.0,0.00032876,120]
[355594502,1741346219080,-500.0,0.00032876,120]
[355594503,1741346219100,-500.0,0.00032876,120]
[355594504,1741346219121,-500.0,0.00032876,120]
[355594505,1741346219142,-134.48513942,0.00032876,120]
[355594506,1741346219364,-365.51486058,0.00032876,120]
[355594507,1741346219386,-234.48513942,0.00032876,120]
[355594508,1741346219411,-45.23067,0.00033424,120]
[355594509,1741346219638,-956.11319928,0.00033424,120]
[355594510,1741346220029,-200.0,0.000392,120]
[355594511,1741346220051,-200.0,0.000392,120]
[355594512,1741346220074,-16.66666667,0.000392,120]
[355594513,1741346220323,-228.56400333,0.000392,120]
[355594514,1741346220351,-159.7096513,0.0004,120]
[355594515,1741346264257,-174.61,0.00030598,89]
[355594516,1741346404516,45.23067,0.00033424,120]
[355594519,1741346707225,600.0,0.00032054,120]
[355594554,1741347032309,-181.616994,0.00017699,2]
[355594555,1741347032319,-186.74203423,0.00018,2]
[355594558,1741347032328,-338.7508966,0.00018177,2]
[355594560,1741347032338,-168.41,0.00018656,2]
[355594562,1741347032348,-168.41,0.00018656,2]
[355594563,1741347032358,-168.41,0.00018656,2]
[355594566,1741347032367,-300.0,0.00018664,2]
[355594568,1741347032376,-500.0,0.00018665,2]
[355594570,1741347032386,-500.0,0.00018665,2]
[355594572,1741347032396,-500.0,0.00018665,2]
[355594573,1741347032406,-500.0,0.00018665,2]
[355594575,1741347032418,-500.0,0.00018665,2]
[355594576,1741347032429,-500.0,0.00018665,2]
[355594577,1741347032441,-500.0,0.00018665,2]
[355594578,1741347032453,-589.16021418,0.00018665,2]
[355594579,1741347032464,-500.0,0.00018665,2]
[355594580,1741347032475,-500.0,0.00018665,2]
[355594581,1741347032484,-10740.84306109,0.00018666,2]
[355594591,1741347037903,-2609.94233253,0.00018666,2]
[355594617,1741347046037,-9509.97937063,0.00018666,2]
[355594626,1741347558200,556.72,0.00010959,2]
[355594921,1741348432925,6049.4,0.00016022,2]
[355594942,1741349257912,547.226,0.00017,20]
[355594969,1741349432435,-1083.7265855,0.0001715,2]
[355594971,1741349432445,-2374.9131936,0.0001742,2]